{"text_format":"1","workbook":"xlsx","n_sheets":5,"sheets":["COL","APCC","ACC","Division Lists","T-shirt Size Guide"],"not_rendered":{"charts":0,"images":3,"macros":1,"external_links":0,"defined_names":8,"comments":0,"pivot_tables":0},"unopened":[],"bounds":{"document_bytes":16777216,"sheet_cells":100000,"rows_first":2000,"rows_last":500,"rows_between":2000,"halvings":0,"cell_chars":16384,"cell_head_chars":4096},"cells_cut":0,"cells_raw":0,"read":"whole","date_system":"1900"}

{"sheet":"COL","index":0,"n_rows":46,"n_cols":12,"rows_kept":46,"cut":false,"hidden":false,"merged":[[2,1,2,9],[5,1,5,2],[5,4,5,5],[5,7,5,8]]}
[]
[]
[null,"                CHEER OUT LOUD",null,null,null,null,null,null,null,null," "," "]
[]
[]
[null,"TEAM Details",null,null,"PIC Information",null,null,"Package"]
[]
[null,"Country :",null,null,"Person In Charge :",null,null,"Package :"]
[null,"Team Name :",null,null,"Position :",null,null,"Check In Date :","2026-10-15"]
[null,"Origin National Federation :",null,null,"Email :",null,null,"Check Out Date :","2026-10-19"]
[null,"Age Group :",null,null,"Contact Number :",null,null,null,"If accommodation is not required,"]
[null,"Division :",null,null,"Participant Count :",null,null,null,"please leave the Check-in Date "]
[null,null,"(refer to tab \"Divisions Lists\")",null,null," (including manager & coaches)",null,null,"and Check-out fields blank."]
[]
[null,"<COL is a non-ICU division, doesn't require endorsement letter from origin national federation>"]
[null,"No.","Full Name","Identity","Gender","CHARM ID\n(if applicable)","Malaysian IC\n(if applicable)","Passport","Birthdate","Shirt size","ACC","APCC"]
[null,1,"ALEXANDER","PERSON IN CHARGE","MALE","PO123456","000000-00-0000","A12345678","DD/MM/YYYY","XS","NO","YES"]
[null,2]
[null,3]
[null,4]
[null,5]
[null,6]
[null,7,null,null,null,null,null,null,null,null,{"$f":"IFERROR(IF(AND(ISNUMBER(Table_ClassList45[[#This Row],[Birthdate]]),ISNUMBER(Table_ClassList45[[#This Row],[Passport]])),Table_ClassList45[[#This Row],[Birthdate]]-Table_ClassList45[[#This Row],[Passport]],\"\"),\"\")","v":""}]
[null,8,null,null,null,null,null,null,null,null,{"$f":"IFERROR(IF(AND(ISNUMBER(Table_ClassList45[[#This Row],[Birthdate]]),ISNUMBER(Table_ClassList45[[#This Row],[Passport]])),Table_ClassList45[[#This Row],[Birthdate]]-Table_ClassList45[[#This Row],[Passport]],\"\"),\"\")","v":""}]
[null,9,null,null,null,null,null,null,null,null,{"$f":"IFERROR(IF(AND(ISNUMBER(Table_ClassList45[[#This Row],[Birthdate]]),ISNUMBER(Table_ClassList45[[#This Row],[Passport]])),Table_ClassList45[[#This Row],[Birthdate]]-Table_ClassList45[[#This Row],[Passport]],\"\"),\"\")","v":""}]
[null,10,null,null,null,null,null,null,null,null,{"$f":"IFERROR(IF(AND(ISNUMBER(Table_ClassList45[[#This Row],[Birthdate]]),ISNUMBER(Table_ClassList45[[#This Row],[Passport]])),Table_ClassList45[[#This Row],[Birthdate]]-Table_ClassList45[[#This Row],[Passport]],\"\"),\"\")","v":""}]
[null,11,null,null,null,null,null,null,null,null,{"$f":"IFERROR(IF(AND(ISNUMBER(Table_ClassList45[[#This Row],[Birthdate]]),ISNUMBER(Table_ClassList45[[#This Row],[Passport]])),Table_ClassList45[[#This Row],[Birthdate]]-Table_ClassList45[[#This Row],[Passport]],\"\"),\"\")","v":""}]
[null,12,null,null,null,null,null,null,null,null,{"$f":"IFERROR(IF(AND(ISNUMBER(Table_ClassList45[[#This Row],[Birthdate]]),ISNUMBER(Table_ClassList45[[#This Row],[Passport]])),Table_ClassList45[[#This Row],[Birthdate]]-Table_ClassList45[[#This Row],[Passport]],\"\"),\"\")","v":""}]
[null,13,null,null,null,null,null,null,null,null,{"$f":"IFERROR(IF(AND(ISNUMBER(Table_ClassList45[[#This Row],[Birthdate]]),ISNUMBER(Table_ClassList45[[#This Row],[Passport]])),Table_ClassList45[[#This Row],[Birthdate]]-Table_ClassList45[[#This Row],[Passport]],\"\"),\"\")","v":""}]
[null,14,null,null,null,null,null,null,null,null,{"$f":"IFERROR(IF(AND(ISNUMBER(Table_ClassList45[[#This Row],[Birthdate]]),ISNUMBER(Table_ClassList45[[#This Row],[Passport]])),Table_ClassList45[[#This Row],[Birthdate]]-Table_ClassList45[[#This Row],[Passport]],\"\"),\"\")","v":""}]
[null,15,null,null,null,null,null,null,null,null,{"$f":"IFERROR(IF(AND(ISNUMBER(Table_ClassList45[[#This Row],[Birthdate]]),ISNUMBER(Table_ClassList45[[#This Row],[Passport]])),Table_ClassList45[[#This Row],[Birthdate]]-Table_ClassList45[[#This Row],[Passport]],\"\"),\"\")","v":""}]
[null,16,null,null,null,null,null,null,null,null,{"$f":"IFERROR(IF(AND(ISNUMBER(Table_ClassList45[[#This Row],[Birthdate]]),ISNUMBER(Table_ClassList45[[#This Row],[Passport]])),Table_ClassList45[[#This Row],[Birthdate]]-Table_ClassList45[[#This Row],[Passport]],\"\"),\"\")","v":""}]
[null,17,null,null,null,null,null,null,null,null,{"$f":"IFERROR(IF(AND(ISNUMBER(Table_ClassList45[[#This Row],[Birthdate]]),ISNUMBER(Table_ClassList45[[#This Row],[Passport]])),Table_ClassList45[[#This Row],[Birthdate]]-Table_ClassList45[[#This Row],[Passport]],\"\"),\"\")","v":""}]
[null,18,null,null,null,null,null,null,null,null,{"$f":"IFERROR(IF(AND(ISNUMBER(Table_ClassList45[[#This Row],[Birthdate]]),ISNUMBER(Table_ClassList45[[#This Row],[Passport]])),Table_ClassList45[[#This Row],[Birthdate]]-Table_ClassList45[[#This Row],[Passport]],\"\"),\"\")","v":""}]
[null,19,null,null,null,null,null,null,null,null,{"$f":"IFERROR(IF(AND(ISNUMBER(Table_ClassList45[[#This Row],[Birthdate]]),ISNUMBER(Table_ClassList45[[#This Row],[Passport]])),Table_ClassList45[[#This Row],[Birthdate]]-Table_ClassList45[[#This Row],[Passport]],\"\"),\"\")","v":""}]
[null,20,null,null,null,null,null,null,null,null,{"$f":"IFERROR(IF(AND(ISNUMBER(Table_ClassList45[[#This Row],[Birthdate]]),ISNUMBER(Table_ClassList45[[#This Row],[Passport]])),Table_ClassList45[[#This Row],[Birthdate]]-Table_ClassList45[[#This Row],[Passport]],\"\"),\"\")","v":""}]
[null,21,null,null,null,null,null,null,null,null,{"$f":"IFERROR(IF(AND(ISNUMBER(Table_ClassList45[[#This Row],[Birthdate]]),ISNUMBER(Table_ClassList45[[#This Row],[Passport]])),Table_ClassList45[[#This Row],[Birthdate]]-Table_ClassList45[[#This Row],[Passport]],\"\"),\"\")","v":""}]
[null,22,null,null,null,null,null,null,null,null,{"$f":"IFERROR(IF(AND(ISNUMBER(Table_ClassList45[[#This Row],[Birthdate]]),ISNUMBER(Table_ClassList45[[#This Row],[Passport]])),Table_ClassList45[[#This Row],[Birthdate]]-Table_ClassList45[[#This Row],[Passport]],\"\"),\"\")","v":""}]
[null,23,null,null,null,null,null,null,null,null,{"$f":"IFERROR(IF(AND(ISNUMBER(Table_ClassList45[[#This Row],[Birthdate]]),ISNUMBER(Table_ClassList45[[#This Row],[Passport]])),Table_ClassList45[[#This Row],[Birthdate]]-Table_ClassList45[[#This Row],[Passport]],\"\"),\"\")","v":""}]
[null,24,null,null,null,null,null,null,null,null,{"$f":"IFERROR(IF(AND(ISNUMBER(Table_ClassList45[[#This Row],[Birthdate]]),ISNUMBER(Table_ClassList45[[#This Row],[Passport]])),Table_ClassList45[[#This Row],[Birthdate]]-Table_ClassList45[[#This Row],[Passport]],\"\"),\"\")","v":""}]
[null,25,null,null,null,null,null,null,null,null,{"$f":"IFERROR(IF(AND(ISNUMBER(Table_ClassList45[[#This Row],[Birthdate]]),ISNUMBER(Table_ClassList45[[#This Row],[Passport]])),Table_ClassList45[[#This Row],[Birthdate]]-Table_ClassList45[[#This Row],[Passport]],\"\"),\"\")","v":""}]
[null,26,null,null,null,null,null,null,null,null,{"$f":"IFERROR(IF(AND(ISNUMBER(Table_ClassList45[[#This Row],[Birthdate]]),ISNUMBER(Table_ClassList45[[#This Row],[Passport]])),Table_ClassList45[[#This Row],[Birthdate]]-Table_ClassList45[[#This Row],[Passport]],\"\"),\"\")","v":""}]
[null,27,null,null,null,null,null,null,null,null,{"$f":"IFERROR(IF(AND(ISNUMBER(Table_ClassList45[[#This Row],[Birthdate]]),ISNUMBER(Table_ClassList45[[#This Row],[Passport]])),Table_ClassList45[[#This Row],[Birthdate]]-Table_ClassList45[[#This Row],[Passport]],\"\"),\"\")","v":""}]
[null,28,null,null,null,null,null,null,null,null,{"$f":"IFERROR(IF(AND(ISNUMBER(Table_ClassList45[[#This Row],[Birthdate]]),ISNUMBER(Table_ClassList45[[#This Row],[Passport]])),Table_ClassList45[[#This Row],[Birthdate]]-Table_ClassList45[[#This Row],[Passport]],\"\"),\"\")","v":""}]
[null,29,null,null,null,null,null,null,null,null,{"$f":"IFERROR(IF(AND(ISNUMBER(Table_ClassList45[[#This Row],[Birthdate]]),ISNUMBER(Table_ClassList45[[#This Row],[Passport]])),Table_ClassList45[[#This Row],[Birthdate]]-Table_ClassList45[[#This Row],[Passport]],\"\"),\"\")","v":""}]
[null,30,null,null,null,null,null,null,null,null,{"$f":"IFERROR(IF(AND(ISNUMBER(Table_ClassList45[[#This Row],[Birthdate]]),ISNUMBER(Table_ClassList45[[#This Row],[Passport]])),Table_ClassList45[[#This Row],[Birthdate]]-Table_ClassList45[[#This Row],[Passport]],\"\"),\"\")","v":""}]

{"sheet":"APCC","index":1,"n_rows":46,"n_cols":12,"rows_kept":46,"cut":false,"hidden":false,"merged":[[2,1,2,9],[5,1,5,2],[5,4,5,5],[5,7,5,8]]}
[]
[]
[null,"         ICU ASIA PACIFIC CHEERLEADING CUP",null,null,null,null,null,null,null,null," "," "]
[]
[]
[null,"TEAM Details",null,null,"PIC Information",null,null,"Package"]
[]
[null,"Country :",null,null,"Person In Charge :",null,null,"Package :"]
[null,"Team Name :",null,null,"Position :",null,null,"Check In Date :","2026-10-15"]
[null,"Origin National Federation :",null,null,"Email :",null,null,"Check Out Date :","2026-10-19"]
[null,"Age Group :",null,null,"Contact Number :",null,null,null,"If accommodation is not required,"]
[null,"Division :",null,null,"Participant Count :",null,null,null,"please leave the Check-in Date "]
[null,null,"(refer to tab \"Divisions Lists\")",null,null," (including manager & coaches)",null,null,"and Check-out fields blank."]
[]
[null,"<pls download \"Endorsement Letter Template\" to request endorsement from your national federation>"]
[null,"No.","Full Name","Identity","Gender","CHARM ID\n(if applicable)","Malaysian IC\n(if applicable)","Passport","Birthdate","Shirt size","ACC","COL"]
[null,1,"ALEXANDER","PERSON IN CHARGE","MALE","PO123456","000000-00-0000","A12345678","DD/MM/YYYY","XS","NO","YES"]
[null,2]
[null,3]
[null,4]
[null,5]
[null,6]
[null,7,null,null,null,null,null,null,null,null,{"$f":"IFERROR(IF(AND(ISNUMBER(Table_ClassList4[[#This Row],[Birthdate]]),ISNUMBER(Table_ClassList4[[#This Row],[Passport]])),Table_ClassList4[[#This Row],[Birthdate]]-Table_ClassList4[[#This Row],[Passport]],\"\"),\"\")","v":""}]
[null,8,null,null,null,null,null,null,null,null,{"$f":"IFERROR(IF(AND(ISNUMBER(Table_ClassList4[[#This Row],[Birthdate]]),ISNUMBER(Table_ClassList4[[#This Row],[Passport]])),Table_ClassList4[[#This Row],[Birthdate]]-Table_ClassList4[[#This Row],[Passport]],\"\"),\"\")","v":""}]
[null,9,null,null,null,null,null,null,null,null,{"$f":"IFERROR(IF(AND(ISNUMBER(Table_ClassList4[[#This Row],[Birthdate]]),ISNUMBER(Table_ClassList4[[#This Row],[Passport]])),Table_ClassList4[[#This Row],[Birthdate]]-Table_ClassList4[[#This Row],[Passport]],\"\"),\"\")","v":""}]
[null,10,null,null,null,null,null,null,null,null,{"$f":"IFERROR(IF(AND(ISNUMBER(Table_ClassList4[[#This Row],[Birthdate]]),ISNUMBER(Table_ClassList4[[#This Row],[Passport]])),Table_ClassList4[[#This Row],[Birthdate]]-Table_ClassList4[[#This Row],[Passport]],\"\"),\"\")","v":""}]
[null,11,null,null,null,null,null,null,null,null,{"$f":"IFERROR(IF(AND(ISNUMBER(Table_ClassList4[[#This Row],[Birthdate]]),ISNUMBER(Table_ClassList4[[#This Row],[Passport]])),Table_ClassList4[[#This Row],[Birthdate]]-Table_ClassList4[[#This Row],[Passport]],\"\"),\"\")","v":""}]
[null,12,null,null,null,null,null,null,null,null,{"$f":"IFERROR(IF(AND(ISNUMBER(Table_ClassList4[[#This Row],[Birthdate]]),ISNUMBER(Table_ClassList4[[#This Row],[Passport]])),Table_ClassList4[[#This Row],[Birthdate]]-Table_ClassList4[[#This Row],[Passport]],\"\"),\"\")","v":""}]
[null,13,null,null,null,null,null,null,null,null,{"$f":"IFERROR(IF(AND(ISNUMBER(Table_ClassList4[[#This Row],[Birthdate]]),ISNUMBER(Table_ClassList4[[#This Row],[Passport]])),Table_ClassList4[[#This Row],[Birthdate]]-Table_ClassList4[[#This Row],[Passport]],\"\"),\"\")","v":""}]
[null,14,null,null,null,null,null,null,null,null,{"$f":"IFERROR(IF(AND(ISNUMBER(Table_ClassList4[[#This Row],[Birthdate]]),ISNUMBER(Table_ClassList4[[#This Row],[Passport]])),Table_ClassList4[[#This Row],[Birthdate]]-Table_ClassList4[[#This Row],[Passport]],\"\"),\"\")","v":""}]
[null,15,null,null,null,null,null,null,null,null,{"$f":"IFERROR(IF(AND(ISNUMBER(Table_ClassList4[[#This Row],[Birthdate]]),ISNUMBER(Table_ClassList4[[#This Row],[Passport]])),Table_ClassList4[[#This Row],[Birthdate]]-Table_ClassList4[[#This Row],[Passport]],\"\"),\"\")","v":""}]
[null,16,null,null,null,null,null,null,null,null,{"$f":"IFERROR(IF(AND(ISNUMBER(Table_ClassList4[[#This Row],[Birthdate]]),ISNUMBER(Table_ClassList4[[#This Row],[Passport]])),Table_ClassList4[[#This Row],[Birthdate]]-Table_ClassList4[[#This Row],[Passport]],\"\"),\"\")","v":""}]
[null,17,null,null,null,null,null,null,null,null,{"$f":"IFERROR(IF(AND(ISNUMBER(Table_ClassList4[[#This Row],[Birthdate]]),ISNUMBER(Table_ClassList4[[#This Row],[Passport]])),Table_ClassList4[[#This Row],[Birthdate]]-Table_ClassList4[[#This Row],[Passport]],\"\"),\"\")","v":""}]
[null,18,null,null,null,null,null,null,null,null,{"$f":"IFERROR(IF(AND(ISNUMBER(Table_ClassList4[[#This Row],[Birthdate]]),ISNUMBER(Table_ClassList4[[#This Row],[Passport]])),Table_ClassList4[[#This Row],[Birthdate]]-Table_ClassList4[[#This Row],[Passport]],\"\"),\"\")","v":""}]
[null,19,null,null,null,null,null,null,null,null,{"$f":"IFERROR(IF(AND(ISNUMBER(Table_ClassList4[[#This Row],[Birthdate]]),ISNUMBER(Table_ClassList4[[#This Row],[Passport]])),Table_ClassList4[[#This Row],[Birthdate]]-Table_ClassList4[[#This Row],[Passport]],\"\"),\"\")","v":""}]
[null,20,null,null,null,null,null,null,null,null,{"$f":"IFERROR(IF(AND(ISNUMBER(Table_ClassList4[[#This Row],[Birthdate]]),ISNUMBER(Table_ClassList4[[#This Row],[Passport]])),Table_ClassList4[[#This Row],[Birthdate]]-Table_ClassList4[[#This Row],[Passport]],\"\"),\"\")","v":""}]
[null,21,null,null,null,null,null,null,null,null,{"$f":"IFERROR(IF(AND(ISNUMBER(Table_ClassList4[[#This Row],[Birthdate]]),ISNUMBER(Table_ClassList4[[#This Row],[Passport]])),Table_ClassList4[[#This Row],[Birthdate]]-Table_ClassList4[[#This Row],[Passport]],\"\"),\"\")","v":""}]
[null,22,null,null,null,null,null,null,null,null,{"$f":"IFERROR(IF(AND(ISNUMBER(Table_ClassList4[[#This Row],[Birthdate]]),ISNUMBER(Table_ClassList4[[#This Row],[Passport]])),Table_ClassList4[[#This Row],[Birthdate]]-Table_ClassList4[[#This Row],[Passport]],\"\"),\"\")","v":""}]
[null,23,null,null,null,null,null,null,null,null,{"$f":"IFERROR(IF(AND(ISNUMBER(Table_ClassList4[[#This Row],[Birthdate]]),ISNUMBER(Table_ClassList4[[#This Row],[Passport]])),Table_ClassList4[[#This Row],[Birthdate]]-Table_ClassList4[[#This Row],[Passport]],\"\"),\"\")","v":""}]
[null,24,null,null,null,null,null,null,null,null,{"$f":"IFERROR(IF(AND(ISNUMBER(Table_ClassList4[[#This Row],[Birthdate]]),ISNUMBER(Table_ClassList4[[#This Row],[Passport]])),Table_ClassList4[[#This Row],[Birthdate]]-Table_ClassList4[[#This Row],[Passport]],\"\"),\"\")","v":""}]
[null,25,null,null,null,null,null,null,null,null,{"$f":"IFERROR(IF(AND(ISNUMBER(Table_ClassList4[[#This Row],[Birthdate]]),ISNUMBER(Table_ClassList4[[#This Row],[Passport]])),Table_ClassList4[[#This Row],[Birthdate]]-Table_ClassList4[[#This Row],[Passport]],\"\"),\"\")","v":""}]
[null,26,null,null,null,null,null,null,null,null,{"$f":"IFERROR(IF(AND(ISNUMBER(Table_ClassList4[[#This Row],[Birthdate]]),ISNUMBER(Table_ClassList4[[#This Row],[Passport]])),Table_ClassList4[[#This Row],[Birthdate]]-Table_ClassList4[[#This Row],[Passport]],\"\"),\"\")","v":""}]
[null,27,null,null,null,null,null,null,null,null,{"$f":"IFERROR(IF(AND(ISNUMBER(Table_ClassList4[[#This Row],[Birthdate]]),ISNUMBER(Table_ClassList4[[#This Row],[Passport]])),Table_ClassList4[[#This Row],[Birthdate]]-Table_ClassList4[[#This Row],[Passport]],\"\"),\"\")","v":""}]
[null,28,null,null,null,null,null,null,null,null,{"$f":"IFERROR(IF(AND(ISNUMBER(Table_ClassList4[[#This Row],[Birthdate]]),ISNUMBER(Table_ClassList4[[#This Row],[Passport]])),Table_ClassList4[[#This Row],[Birthdate]]-Table_ClassList4[[#This Row],[Passport]],\"\"),\"\")","v":""}]
[null,29,null,null,null,null,null,null,null,null,{"$f":"IFERROR(IF(AND(ISNUMBER(Table_ClassList4[[#This Row],[Birthdate]]),ISNUMBER(Table_ClassList4[[#This Row],[Passport]])),Table_ClassList4[[#This Row],[Birthdate]]-Table_ClassList4[[#This Row],[Passport]],\"\"),\"\")","v":""}]
[null,30,null,null,null,null,null,null,null,null,{"$f":"IFERROR(IF(AND(ISNUMBER(Table_ClassList4[[#This Row],[Birthdate]]),ISNUMBER(Table_ClassList4[[#This Row],[Passport]])),Table_ClassList4[[#This Row],[Birthdate]]-Table_ClassList4[[#This Row],[Passport]],\"\"),\"\")","v":""}]

{"sheet":"ACC","index":2,"n_rows":46,"n_cols":12,"rows_kept":46,"cut":false,"hidden":false,"merged":[[2,1,2,9],[5,1,5,2],[5,4,5,5],[5,7,5,8]]}
[]
[]
[null,"         ICU ASIAN CHEERLEADING CHAMPIONSHIPS",null,null,null,null,null,null,null,null," "," "]
[]
[]
[null,"TEAM Details",null,null,"PIC Information",null,null,"Package"]
[]
[null,"Country :",null,null,"Person In Charge :",null,null,"Package :"]
[null,"Team Name :",null,null,"Position :",null,null,"Check In Date :","2026-10-15"]
[null,"Origin National Federation :",null,null,"Email :",null,null,"Check Out Date :","2026-10-19"]
[null,"Age Group :",null,null,"Contact Number :",null,null,null,"If accommodation is not required,"]
[null,"Division :",null,null,"Participant Count :",null,null,null,"please leave the Check-in Date "]
[null,null,"(refer to tab \"Divisions Lists\")",null,null," (including manager & coaches)",null,null,"and Check-out fields blank."]
[]
[null,"<pls download \"Endorsement Letter Template\" to request endorsement from your national federation>"]
[null,"No.","Full Name","Identity","Gender","CHARM ID\n(if applicable)","Malaysian IC\n(if applicable)","Passport","Birthdate","Shirt size","APCC","COL"]
[null,1,"ALEXANDER","PERSON IN CHARGE","MALE","PO123456","000000-00-0000","A12345678","DD/MM/YYYY","XS","NO","YES"]
[null,2]
[null,3]
[null,4]
[null,5]
[null,6]
[null,7,null,null,null,null,null,null,null,null,{"$f":"IFERROR(IF(AND(ISNUMBER(Table_ClassList46[[#This Row],[Birthdate]]),ISNUMBER(Table_ClassList46[[#This Row],[Passport]])),Table_ClassList46[[#This Row],[Birthdate]]-Table_ClassList46[[#This Row],[Passport]],\"\"),\"\")","v":""}]
[null,8,null,null,null,null,null,null,null,null,{"$f":"IFERROR(IF(AND(ISNUMBER(Table_ClassList46[[#This Row],[Birthdate]]),ISNUMBER(Table_ClassList46[[#This Row],[Passport]])),Table_ClassList46[[#This Row],[Birthdate]]-Table_ClassList46[[#This Row],[Passport]],\"\"),\"\")","v":""}]
[null,9,null,null,null,null,null,null,null,null,{"$f":"IFERROR(IF(AND(ISNUMBER(Table_ClassList46[[#This Row],[Birthdate]]),ISNUMBER(Table_ClassList46[[#This Row],[Passport]])),Table_ClassList46[[#This Row],[Birthdate]]-Table_ClassList46[[#This Row],[Passport]],\"\"),\"\")","v":""}]
[null,10,null,null,null,null,null,null,null,null,{"$f":"IFERROR(IF(AND(ISNUMBER(Table_ClassList46[[#This Row],[Birthdate]]),ISNUMBER(Table_ClassList46[[#This Row],[Passport]])),Table_ClassList46[[#This Row],[Birthdate]]-Table_ClassList46[[#This Row],[Passport]],\"\"),\"\")","v":""}]
[null,11,null,null,null,null,null,null,null,null,{"$f":"IFERROR(IF(AND(ISNUMBER(Table_ClassList46[[#This Row],[Birthdate]]),ISNUMBER(Table_ClassList46[[#This Row],[Passport]])),Table_ClassList46[[#This Row],[Birthdate]]-Table_ClassList46[[#This Row],[Passport]],\"\"),\"\")","v":""}]
[null,12,null,null,null,null,null,null,null,null,{"$f":"IFERROR(IF(AND(ISNUMBER(Table_ClassList46[[#This Row],[Birthdate]]),ISNUMBER(Table_ClassList46[[#This Row],[Passport]])),Table_ClassList46[[#This Row],[Birthdate]]-Table_ClassList46[[#This Row],[Passport]],\"\"),\"\")","v":""}]
[null,13,null,null,null,null,null,null,null,null,{"$f":"IFERROR(IF(AND(ISNUMBER(Table_ClassList46[[#This Row],[Birthdate]]),ISNUMBER(Table_ClassList46[[#This Row],[Passport]])),Table_ClassList46[[#This Row],[Birthdate]]-Table_ClassList46[[#This Row],[Passport]],\"\"),\"\")","v":""}]
[null,14,null,null,null,null,null,null,null,null,{"$f":"IFERROR(IF(AND(ISNUMBER(Table_ClassList46[[#This Row],[Birthdate]]),ISNUMBER(Table_ClassList46[[#This Row],[Passport]])),Table_ClassList46[[#This Row],[Birthdate]]-Table_ClassList46[[#This Row],[Passport]],\"\"),\"\")","v":""}]
[null,15,null,null,null,null,null,null,null,null,{"$f":"IFERROR(IF(AND(ISNUMBER(Table_ClassList46[[#This Row],[Birthdate]]),ISNUMBER(Table_ClassList46[[#This Row],[Passport]])),Table_ClassList46[[#This Row],[Birthdate]]-Table_ClassList46[[#This Row],[Passport]],\"\"),\"\")","v":""}]
[null,16,null,null,null,null,null,null,null,null,{"$f":"IFERROR(IF(AND(ISNUMBER(Table_ClassList46[[#This Row],[Birthdate]]),ISNUMBER(Table_ClassList46[[#This Row],[Passport]])),Table_ClassList46[[#This Row],[Birthdate]]-Table_ClassList46[[#This Row],[Passport]],\"\"),\"\")","v":""}]
[null,17,null,null,null,null,null,null,null,null,{"$f":"IFERROR(IF(AND(ISNUMBER(Table_ClassList46[[#This Row],[Birthdate]]),ISNUMBER(Table_ClassList46[[#This Row],[Passport]])),Table_ClassList46[[#This Row],[Birthdate]]-Table_ClassList46[[#This Row],[Passport]],\"\"),\"\")","v":""}]
[null,18,null,null,null,null,null,null,null,null,{"$f":"IFERROR(IF(AND(ISNUMBER(Table_ClassList46[[#This Row],[Birthdate]]),ISNUMBER(Table_ClassList46[[#This Row],[Passport]])),Table_ClassList46[[#This Row],[Birthdate]]-Table_ClassList46[[#This Row],[Passport]],\"\"),\"\")","v":""}]
[null,19,null,null,null,null,null,null,null,null,{"$f":"IFERROR(IF(AND(ISNUMBER(Table_ClassList46[[#This Row],[Birthdate]]),ISNUMBER(Table_ClassList46[[#This Row],[Passport]])),Table_ClassList46[[#This Row],[Birthdate]]-Table_ClassList46[[#This Row],[Passport]],\"\"),\"\")","v":""}]
[null,20,null,null,null,null,null,null,null,null,{"$f":"IFERROR(IF(AND(ISNUMBER(Table_ClassList46[[#This Row],[Birthdate]]),ISNUMBER(Table_ClassList46[[#This Row],[Passport]])),Table_ClassList46[[#This Row],[Birthdate]]-Table_ClassList46[[#This Row],[Passport]],\"\"),\"\")","v":""}]
[null,21,null,null,null,null,null,null,null,null,{"$f":"IFERROR(IF(AND(ISNUMBER(Table_ClassList46[[#This Row],[Birthdate]]),ISNUMBER(Table_ClassList46[[#This Row],[Passport]])),Table_ClassList46[[#This Row],[Birthdate]]-Table_ClassList46[[#This Row],[Passport]],\"\"),\"\")","v":""}]
[null,22,null,null,null,null,null,null,null,null,{"$f":"IFERROR(IF(AND(ISNUMBER(Table_ClassList46[[#This Row],[Birthdate]]),ISNUMBER(Table_ClassList46[[#This Row],[Passport]])),Table_ClassList46[[#This Row],[Birthdate]]-Table_ClassList46[[#This Row],[Passport]],\"\"),\"\")","v":""}]
[null,23,null,null,null,null,null,null,null,null,{"$f":"IFERROR(IF(AND(ISNUMBER(Table_ClassList46[[#This Row],[Birthdate]]),ISNUMBER(Table_ClassList46[[#This Row],[Passport]])),Table_ClassList46[[#This Row],[Birthdate]]-Table_ClassList46[[#This Row],[Passport]],\"\"),\"\")","v":""}]
[null,24,null,null,null,null,null,null,null,null,{"$f":"IFERROR(IF(AND(ISNUMBER(Table_ClassList46[[#This Row],[Birthdate]]),ISNUMBER(Table_ClassList46[[#This Row],[Passport]])),Table_ClassList46[[#This Row],[Birthdate]]-Table_ClassList46[[#This Row],[Passport]],\"\"),\"\")","v":""}]
[null,25,null,null,null,null,null,null,null,null,{"$f":"IFERROR(IF(AND(ISNUMBER(Table_ClassList46[[#This Row],[Birthdate]]),ISNUMBER(Table_ClassList46[[#This Row],[Passport]])),Table_ClassList46[[#This Row],[Birthdate]]-Table_ClassList46[[#This Row],[Passport]],\"\"),\"\")","v":""}]
[null,26,null,null,null,null,null,null,null,null,{"$f":"IFERROR(IF(AND(ISNUMBER(Table_ClassList46[[#This Row],[Birthdate]]),ISNUMBER(Table_ClassList46[[#This Row],[Passport]])),Table_ClassList46[[#This Row],[Birthdate]]-Table_ClassList46[[#This Row],[Passport]],\"\"),\"\")","v":""}]
[null,27,null,null,null,null,null,null,null,null,{"$f":"IFERROR(IF(AND(ISNUMBER(Table_ClassList46[[#This Row],[Birthdate]]),ISNUMBER(Table_ClassList46[[#This Row],[Passport]])),Table_ClassList46[[#This Row],[Birthdate]]-Table_ClassList46[[#This Row],[Passport]],\"\"),\"\")","v":""}]
[null,28,null,null,null,null,null,null,null,null,{"$f":"IFERROR(IF(AND(ISNUMBER(Table_ClassList46[[#This Row],[Birthdate]]),ISNUMBER(Table_ClassList46[[#This Row],[Passport]])),Table_ClassList46[[#This Row],[Birthdate]]-Table_ClassList46[[#This Row],[Passport]],\"\"),\"\")","v":""}]
[null,29,null,null,null,null,null,null,null,null,{"$f":"IFERROR(IF(AND(ISNUMBER(Table_ClassList46[[#This Row],[Birthdate]]),ISNUMBER(Table_ClassList46[[#This Row],[Passport]])),Table_ClassList46[[#This Row],[Birthdate]]-Table_ClassList46[[#This Row],[Passport]],\"\"),\"\")","v":""}]
[null,30,null,null,null,null,null,null,null,null,{"$f":"IFERROR(IF(AND(ISNUMBER(Table_ClassList46[[#This Row],[Birthdate]]),ISNUMBER(Table_ClassList46[[#This Row],[Passport]])),Table_ClassList46[[#This Row],[Birthdate]]-Table_ClassList46[[#This Row],[Passport]],\"\"),\"\")","v":""}]

{"sheet":"Division Lists","index":3,"n_rows":59,"n_cols":17,"rows_kept":59,"cut":false,"hidden":false,"merged":[[3,2,3,16],[1,1,2,15],[5,1,5,5],[20,7,20,11],[23,10,23,11],[17,1,17,5],[20,13,20,16],[20,1,20,5],[34,4,34,5],[31,4,31,5],[32,4,32,5],[22,4,22,5],[25,1,25,2],[26,1,26,2],[28,4,28,5],[29,4,29,5],[30,4,30,5],[47,4,47,5],[45,4,45,5],[46,4,46,5],[43,4,43,5],[44,4,44,5],[41,4,41,5],[42,4,42,5],[39,4,39,5],[40,4,40,5],[37,4,37,5],[38,4,38,5],[35,4,35,5],[36,4,36,5],[33,4,33,5]]}
[]
[null," DIVISION LISTS"]
[]
[]
[]
[null,"1. COL & APCC Competing Age Group Explanation:"]
[null,"• Peewee (PW): 7–12 years old // Born 2009–2014"]
[null,"• Teen (TN): 13–19 years old // Born 2013–2007"]
[null,"• Open: Age eligibility varies depending on division level"]
[null,"2. ACC Age Groups (according to ICU Age Grid):"]
[null,"• Youth: 12–15 years old // Born 2011–2014"]
[null,"• Junior: 15–19 years old // Born 2007–2011"]
[null,"• Senior: 16 years old and above // Born 2010 and earlier"]
[null,"3. Team Size Categories:"]
[null,"• Small: 8–15 athletes"]
[null,"• Large: 16–24 athletes"]
[null,"4. Early Bird registration ends on 17 July 2026."]
[null,"5. Divisions may be combined if there are fewer than 2 participating teams in a division."]
[null,"6. Team PICs will be notified and advised accordingly."]
[]
[null," COL (16 Oct 2026)",null,null,null,null,null," APCC (17-18 Oct 2026)",null,null,null,null,null," ACC (18 Oct 2026)"]
[]
[null,"Local Division","ICU Level","Age Group","Team Size",null,null,"Team Cheer",null,null,null,null,null,"Team Cheer"]
[null,"PW Cheer Compulsory","L0","7-12 yrs old","Small","Large",null,"Division","ICU Level","Age Group","Team Size",null,null,"Division","ICU Level","Age Group","Team Size"]
[null,"HS Cheer Compulsory","L1","13-19 yrs old","Small","Large",null,"PW Beginner","L0","7 to 12 yrs old","Small","Large",null,"Youth AG Median","L3","12 to 15 yrs old","16-24 pax"]
[null,"PW Pom Compulsory",null,"7-12 yrs old","Small","Large",null,"PW Novice","L1","7 to 12 yrs old","Small","Large",null,"Youth Coed Median","L3","12 to 15 yrs old","16-24 pax"]
[null,"HS Pom Compulsory",null,"13-19 yrs old","Small","Large",null,"PW Intermediate","L2","7 to 12 yrs old","Small","Large",null,"Junior AG Advanced","L4","15 to 19 yrs old","16-24 pax"]
[null,null,null,null,null,null,null,"TN All GIrls Intermediate","L2","13 to 19 yrs old","Small","Large",null,"Junior Coed Advanced","L4","15 to 19 yrs old","16-24 pax"]
[null,"International Division","ICU Level","Age Group","Team Size",null,null,"TN Coed Intermediate","L2","13 to 19 yrs old","Small","Large",null,"Senior AG Elite","L5","16 and above","16-24 pax"]
[null,"PW Group Stunt Beginner","L0","7-12 yrs old","4-5 pax",null,null,"TN All Girls Median","L3","13 to 19 yrs old","Small","Large",null,"Senior Coed Elite","L5","16 and above","16-24 pax"]
[null,"PW Group Stunt Novice","L1","7-12 yrs old","4-5 pax",null,null,"TN Coed Median","L3","13 to 19 yrs old","Small","Large",null,"Senior AG Premier","L6","16 and above","16-24 pax"]
[null,"PW Group Stunt Intermediate","L2","7-12 yrs old","4-5 pax",null,null,"TN All Girls Advanced","L4","13 to 19 yrs old","Small","Large",null,"Senior Coed Premier","L6","16 and above","16-24 pax"]
[null,"PW Group Stunt Median","L3","7-12 yrs old","4-5 pax",null,null,"TN Coed Advanced","L4","13 to 19 yrs old","Small","Large"]
[null,"TN AG Group Stunt Intermediate","L2","13 to 19 yrs old","4-5 pax",null,null,"Open All Girls Advanced","L4","12 and above","Small","Large",null,"Performance Cheer"]
[null,"TN AG Group Stunt Median","L3","13 to 19 yrs old","4-5 pax",null,null,"Open Coed Advanced","L4","12 and above","Small","Large",null,"Division",null,"Age Group","Team Size"]
[null,"TN AG Group Stunt Advanced","L4","13 to 19 yrs old","4-5 pax",null,null,"Open All Girls Elite","L5","14 and above","Small","Large",null,"Youth Jazz",null,"12 to 15 yrs old","16-24 pax"]
[null,"TN Coed Group Stunt Intermediate","L2","13 to 19 yrs old","4-5 pax",null,null,"Open Coed Elite","L5","14 and above","Small","Large",null,"Youth Hip Hop",null,"12 to 15 yrs old","16-24 pax"]
[null,"TN Coed Group Stunt Median","L3","13 to 19 yrs old","4-5 pax",null,null,"Open All Girls Premier","L6","15 and above","Small","Large",null,"Youth Pom",null,"12 to 15 yrs old","16-24 pax"]
[null,"TN Coed Group Stunt Advanced","L4","13 to 19 yrs old","4-5 pax",null,null,"Open Coed Premier","L6","15 and above","Small","Large",null,"Junior Jazz",null,"15 to 19 yrs old","16-24 pax"]
[null,"Open AG Group Stunt Advanced","L4","12 and above","4-5 pax",null,null,null,null,null,null,null,null,"Junior Hip Hop",null,"15 to 19 yrs old","16-24 pax"]
[null,"Open AG Group Stunt Elite","L5","14 and above","4-5 pax",null,null,"Performance Cheer",null,null,null,null,null,"Junior Pom",null,"15 to 19 yrs old","16-24 pax"]
[null,"Open AG Group Stunt Premier","L6","15 and above","4-5 pax",null,null,"Division",null,"Age Group","Team Size",null,null,"Senior Jazz",null,"16 and above","16-24 pax"]
[null,"Open Coed Group Stunt Advanced","L4","12 and above","4-5 pax",null,null,"PW Jazz",null,"7 to 12 yrs old","Small","Large",null,"Senior Hip Hop",null,"16 and above","16-24 pax"]
[null,"Open Coed Group Stunt Elite","L5","14 and above","4-5 pax",null,null,"PW Hip Hop",null,"7 to 12 yrs old","Small","Large",null,"Senior Pom",null,"16 and above","16-24 pax"]
[null,"Open Coed Group Stunt Premier","L6","15 and above","4-5 pax",null,null,"PW Pom",null,"7 to 12 yrs old","Small","Large",null,"Youth Hip Hop Doubles",null,"12 to 15 yrs old","2 pax"]
[null,"Open Partner Stunt Advanced","L4","12 and above","2 pax",null,null,"TN Jazz",null,"13 to 19 yrs old","Small","Large",null,"Youth Pom Doubles",null,"12 to 15 yrs old","2 pax"]
[null,"Open Partner Stunt Elite","L5","14 and above","2 pax",null,null,"TN Hip Hop",null,"13 to 19 yrs old","Small","Large",null,"Junior Hip Hop Doubles",null,"15 to 19 yrs old","2 pax"]
[null,"Open Partner Stunt Premier","L6","15 and above","2 pax",null,null,"TN Pom",null,"13 to 19 yrs old","Small","Large",null,"Junior Pom Doubles",null,"15 to 19 yrs old","2 pax"]
[null,null,null,null,null,null,null,"Senior Jazz",null,"16 and above","Small","Large",null,"Senior Hip Hop Doubles",null,"16 and above","2 pax"]
[null,null,null,null,null,null,null,"Senior Hip Hop",null,"16 and above","Small","Large",null,"Senior Pom Doubles",null,"16 and above","2 pax"]
[null,null,null,null,null,null,null,"Senior Pom",null,"16 and above","Small","Large"]
[null,null,null,null,null,null,null,"PW Jazz Doubles",null,"7 to 12 yrs old","2 pax"]
[null,null,null,null,null,null,null,"PW Hip Hop Doubles",null,"7 to 12 yrs old","2 pax"]
[null,null,null,null,null,null,null,"PW Pom Doubles",null,"7 to 12 yrs old","2 pax"]
[null,null,null,null,null,null,null,"TN Jazz Doubles",null,"13 to 19 yrs old","2 pax"]
[null,null,null,null,null,null,null,"TN Hip Hop Doubles",null,"13 to 19 yrs old","2 pax"]
[null,null,null,null,null,null,null,"TN Pom Doubles",null,"13 to 19 yrs old","2 pax"]
[null,null,null,null,null,null,null,"Senior Hip Hop Doubles",null,"16 and above","2 pax"]
[null,null,null,null,null,null,null,"Senior Pom Doubles",null,"16 and above","2 pax"]

{"sheet":"T-shirt Size Guide","index":4,"n_rows":18,"n_cols":7,"rows_kept":18,"cut":false,"hidden":false,"merged":[[2,1,2,6],[6,1,9,1],[10,1,17,1],[3,2,3,7]]}
[]
[]
[null,"T-SHIRT SIZE GUIDE"]
[]
[]
[null,null,"Size","Chest","Shoulder","Length","Sleeve"]
[null,"KIDS",26,"26\"","10.5\"","17.5\"","5\""]
[null,null,28,"28\"","11\"","19\"","6\""]
[null,null,30,"30\"","11.5\"","20.5\"","6.5\""]
[null,null,32,"32\"","12.5\"","22\"","7\""]
[null,"ADULT","2XS","34\"","13.5\"","23\"","6.5\""]
[null,null,"XS","36\"","14.5\"","24\"","7\""]
[null,null,"S","38\"","15.5\"","25\"","7.5\""]
[null,null,"M","40\"","16.5\"","26\"","8\""]
[null,null,"L","42\"","17.5\"","27\"","8.5\""]
[null,null,"XL","44\"","18.5\"","28\"","9\""]
[null,null,"2XL","46\"","19.5\"","29\"","9.5\""]
[null,null,"3XL","48\"","20.5\"","30\"","10\""]